bitfinex-derivatives/quotes_ETHF0:USTF0_20250926
["timestamp","ask_amount","ask_price","bid_price","bid_amount"]
[1758888947400,1.33217755,3885.8,3885.7,0.7289]
[1758888948101,1.33217755,3885.8,3885.7,1.2963]
[1758888948494,1.00677755,3885.8,3885.7,1.5244]
[1758888950196,1.33217755,3885.8,3885.7,0.7289]
[1758888950597,0.78027755,3885.8,3885.7,1.5244]
[1758888950906,1.33217755,3885.8,3885.7,1.5244]
[1758888951205,1.00677755,3885.8,3885.7,1.5244]
[1758888952108,1.1166535,3885.8,3885.7,1.5244]
[1758888952310,0.8901535,3885.8,3885.7,1.5244]
[1758888952602,0.6601535,3885.8,3885.7,1.5244]
[1758888953808,0.10987595,3885.8,3885.7,1.5244]
[1758888955107,0.10987595,3885.8,3885.7,4.7322]
[1758888955901,3.6643,3886.4,3886.3,0.69243]
[1758888956209,4.65070652,3886.4,3886.3,1.29623]
[1758888957406,4.65070652,3886.4,3886.3,0.95843]
[1758888957599,4.65070652,3886.4,3886.3,0.46283]
[1758888959499,4.65070652,3886.4,3886.3,0.69243]
[1758888959699,4.65070652,3886.4,3886.3,1.03023]
[1758888960196,0.66100652,3886.4,3886.3,1.25833]
[1758888960403,0.0257,3886.8,3886.7,1.25829]
[1758888960698,3.2078,3887.3,3887.2,0.69233]
[1758888960699,5.71282321,3887.3,3887.2,0.69233]
[1758888960903,6.58912579,3887.3,3887.2,0.69233]
[1758888961105,6.58912579,3887.3,3887.2,0.46273]
[1758888961510,6.58912579,3887.3,3887.2,0.69233]
[1758888961708,6.58912579,3887.3,3887.2,0.64233]
[1758888962011,6.58912579,3887.3,3887.2,1.20823]
[1758888962310,6.58912579,3887.3,3887.2,0.41273]
[1758888962505,6.58912579,3887.3,3887.2,0.64233]
[1758888962709,4.54060258,3887.3,3887.2,1.20823]
[1758888963105,3.9897,3887.3,3887.2,1.20823]
[1758888963515,0.266,3887.7,3887.2,1.20823]
[1758888963516,0.2557,3887.7,3887.6,1.25818]
[1758888963808,0.2557,3887.7,3887.6,1.52418]
[1758888964405,0.4822,3887.7,3887.6,1.52418]
[1758888964597,0.8076,3887.7,3887.6,0.72868]
[1758888965001,9.58690806,3888.4,3887.6,0.72868]
[1758888965002,0.3254,3888.1,3888.0,0.46263]
[1758888965211,0.217,3888.1,3888.0,1.38373]
[1758888965410,0.73356,3888.4,3888.3,1.2502]
[1758888966008,0.73356,3888.4,3888.3,42.0502]
[1758888966806,0.73356,3888.4,3888.3,42.3162]
[1758888967505,0.13304286,3888.4,3888.3,42.3162]
[1758888967703,0.0094,3889.1,3888.6,0.7876]
[1758888968012,0.0094,3889.1,3889.0,1.38361]
[1758888968207,0.0094,3889.1,3889.0,1.64961]
[1758888968805,0.5587,3890.0,3889.9,0.46241]
[1758888969010,0.223,3890.0,3889.9,1.50281]
[1758888969312,0.223,3890.4,3890.3,0.91006]
[1758888969508,0.223,3890.4,3890.3,1.23576]
[1758888969813,3.2078,3890.5,3890.4,0.3257]
[1758888970009,0.3357,3890.8,3890.4,0.3257]
[1758888970307,3.2078,3890.9,3890.5,0.46233]
[1758888970513,0.3357,3890.8,3890.7,0.46231]
[1758888970913,0.3357,3890.8,3890.7,0.267]
[1758888971613,5.3357,3890.8,3890.6,0.267]
[1758888971814,5.3357,3890.8,3890.5,0.46233]
[1758888972014,0.3357,3890.7,3890.6,0.46232]
[1758888972215,0.7817,3890.7,3890.6,0.78802]
[1758888972518,0.88997391,3890.7,3890.6,1.00292]
[1758888973410,0.88997391,3890.7,3890.6,1.23572]
[1758888973612,3.4308,3890.9,3890.8,0.91]
[1758888973814,3.53897755,3890.9,3890.8,1.2357]
[1758888974511,3.2078,3890.9,3890.8,0.788]
[1758888974702,3.2078,3891.3,3890.8,0.3257]
[1758888974907,3.2078,3891.3,3891.2,0.78795]
[1758888975314,3.2078,3891.3,3891.2,41.58795]
[1758888975612,3.65146878,3891.3,3891.2,40.8]
[1758888975805,0.3357,3890.9,3890.2,0.267]
[1758888976001,3.2078,3891.0,3890.6,0.3257]
[1758888976204,3.2078,3891.0,3890.9,0.3257]
[1758888976808,3.5435,3891.0,3890.8,0.4623]
[1758888977110,0.3357,3890.8,3890.7,0.72931]
[1758888977319,0.44358943,3890.8,3890.7,0.267]
[1758888977512,0.3357,3890.7,3890.5,0.46233]
[1758888977715,3.65138943,3890.6,3890.5,0.46233]
[1758888979720,4.09738943,3890.6,3890.5,0.46233]
[1758888980012,4.09738943,3890.6,3890.5,1.23573]
[1758888981318,4.09738943,3890.6,3890.5,1.36283]
[1758888981319,3.2078,3890.6,3890.5,1.36283]
[1758888982319,3.4308,3890.6,3890.5,1.36283]
[1758888982614,3.2078,3890.6,3890.5,1.36283]
[1758888982816,3.9895,3890.6,3890.5,1.23573]
[1758888983015,0.7817,3890.6,3890.5,1.50273]
[1758888983411,0.446,3890.6,3890.5,1.50273]
[1758888983610,3.9895,3891.0,3890.9,0.46229]
[1758888983817,3.76107792,3891.0,3890.9,1.23569]
[1758888984120,3.76107792,3891.0,3890.9,1.50269]
[1758888984121,3.31508432,3891.0,3890.9,1.50269]
[1758888984615,3.6538,3891.0,3890.9,1.23569]
[1758888984818,4.09682051,3891.0,3890.9,0.72929]
[1758888985420,3.76112051,3891.0,3890.9,1.50269]
[1758888985720,4.09682051,3891.0,3890.9,0.94419]
[1758888985913,4.09682051,3891.0,3890.9,0.72929]
[1758888986619,3.31512051,3891.0,3890.9,1.50269]
[1758888986924,4.09682051,3891.0,3890.9,1.50269]
[1758888988219,4.55910051,3891.0,3890.9,0.3257]
[1758888988412,0.5587,3890.9,3890.8,0.7293]
[1758888988608,0.10732051,3890.9,3890.8,1.5027]
[1758888988817,3.5435,3891.4,3891.2,1.00285]
[1758888988818,0.88926906,3891.3,3891.2,1.00285]
[1758888989120,0.88926928,3891.3,3891.2,1.00285]
[1758888989313,0.88926928,3891.3,3891.2,0.46225]
[1758888989508,0.88926928,3891.3,3891.2,0.67715]
[1758888989712,0.66626928,3891.3,3891.2,1.00285]
[1758888989917,0.88926928,3891.3,3891.2,1.00285]
[1758888990120,0.10756928,3891.3,3891.2,1.23565]
[1758888990614,0.33056928,3891.3,3891.2,1.23565]
[1758888990815,0.10756928,3891.3,3891.2,1.23565]
[1758888991421,0.33056928,3891.3,3891.2,1.23565]
[1758888991624,0.10756928,3891.3,3891.2,1.23565]
[1758888992118,0.10756928,3891.3,3891.2,6.23565]
[1758888992419,3.2078,3891.4,3891.3,1.23564]
[1758888992633,4.09743184,3891.4,3891.3,1.23564]
[1758888992816,3.76173184,3891.4,3891.3,1.23564]
[1758888993219,4.30828227,3891.4,3891.3,1.23564]
[1758888993619,0.10793184,3891.4,3891.3,1.23564]
[1758888993928,1.84e-06,3891.4,3891.3,4.44344]
[1758888994219,0.7817,3892.6,3892.5,1.0027]
[1758888994427,1.3286357,3892.6,3892.5,0.8066]
[1758888994626,1.3286357,3892.6,3892.5,1.2687]
[1758888994828,1.3286357,3892.6,3892.5,1.5015]
[1758888995029,1.3286357,3892.6,3892.5,1.2355]
[1758888995223,1.3286357,3892.6,3892.5,0.943]
[1758888995419,1.3286357,3892.6,3892.5,1.0027]
[1758888995622,1.3286357,3892.6,3892.5,1.2687]
[1758888996029,1.3286357,3892.6,3892.5,1.5015]
[1758888996226,0.9929357,3892.6,3892.5,1.6286]
[1758888996532,1.3286357,3892.6,3892.5,1.6286]
[1758888996726,1.3286357,3892.6,3892.5,0.943]
[1758888997224,1.3286357,3892.6,3892.5,1.5015]
[1758888997633,0.5469357,3892.6,3892.5,1.6286]
[1758888998526,0.5469357,3892.6,3892.5,1.3626]
[1758888998733,0.5469357,3892.6,3892.5,1.2687]
[1758888998734,1.3176357,3892.6,3892.5,1.2687]
[1758888998930,1.3176357,3892.6,3892.5,0.4621]
[1758888999123,1.3176357,3892.6,3892.5,0.7281]
[1758888999627,1.3176357,3892.6,3892.5,1.27]
[1758888999829,0.9862357,3892.6,3892.5,1.6172]
[1758889000226,0.9862357,3892.6,3892.5,1.026]
[1758889000227,3.2078,3892.6,3892.5,1.026]
[1758889000444,0.3314,3894.0,3893.9,0.46194]
[1758889000735,3.9834,3894.0,3893.9,0.21157155]
[1758889001427,3.9834,3894.0,3893.9,0.75347155]
[1758889001827,3.9834,3894.0,3893.9,0.43407155]
[1758889002028,3.9834,3894.0,3893.9,0.21157155]
[1758889002732,0.4442,3893.8,3893.5,0.46198]
[1758889002933,0.4442,3893.8,3893.3,0.46201]
[1758889002934,1.23759,3893.4,3893.3,0.46201]
[1758889003238,0.7756,3893.4,3893.3,0.46201]
[1758889004236,1.2376,3893.4,3893.3,0.46201]
[1758889004535,0.7756,3893.4,3893.3,0.46201]
[1758889005037,0.7756,3892.6,3892.5,0.5419]
[1758889005225,0.7756,3892.6,3892.5,0.4621]
[1758889005424,0.7756,3892.6,3892.5,0.6846]
[1758889005633,0.7756,3892.6,3892.5,1.2221]
[1758889005634,0.4442,3892.6,3892.5,1.2221]
[1758889005936,0.5593,3892.9,3892.8,1.00397]
[1758889006137,0.88291148,3892.9,3892.8,1.00397]
[1758889007034,0.7756,3892.7,3892.6,0.46209]
[1758889007233,0.88291148,3892.7,3892.6,0.46209]
[1758889007932,0.88291148,3892.7,3891.9,41.95542]
[1758889007933,0.43871148,3892.7,3891.9,41.95542]
[1758889008240,0.7756,3891.9,3891.8,4.21189]
[1758889008428,0.33521148,3891.9,3891.8,4.69699]
[1758889009042,3.9834,3892.6,3892.5,1.004]
[1758889010037,3.9834,3892.6,3892.5,0.4621]
[1758889010430,0.137,3892.5,3891.8,44.2748]
[1758889010635,0.7756,3891.9,3891.8,0.46219]
[1758889012340,1.0987644,3891.9,3891.8,1.00409]
[1758889012536,1.0987644,3891.9,3891.8,1.22219]
[1758889012537,0.5394644,3891.9,3891.8,1.22219]
[1758889012842,0.2279,3892.3,3892.2,0.76]
[1758889013037,0.7756,3892.3,3892.2,0.68464]
[1758889013339,0.7756,3892.3,3892.2,0.46214]
[1758889013340,1.77720556,3892.3,3892.2,0.46214]
[1758889013541,1.31508556,3892.3,3892.2,0.46214]
[1758889014145,1.77720556,3892.3,3892.2,0.46214]
[1758889014341,1.77720556,3892.3,3891.9,0.46217]
[1758889014342,0.4442,3892.0,3891.9,0.46217]
[1758889014545,0.7756,3891.6,3891.5,0.46222]
[1758889014739,0.4442,3891.6,3891.5,1.22222]
[1758889014939,0.2279,3891.6,3891.5,1.35132]
[1758889015945,0.7756,3891.6,3891.5,0.46222]
[1758889016138,4.52348022,3891.6,3891.5,0.46222]
[1758889016843,1.31568022,3891.6,3891.5,1.00412]
[1758889018245,1.31568022,3891.6,3891.5,1.22222]
[1758889018246,0.7756,3891.6,3891.5,1.22222]
[1758889018449,0.4442,3891.6,3891.5,1.35132]
[1758889018948,0.7756,3891.6,3891.5,1.22222]
[1758889019141,1.31587687,3891.6,3891.5,1.22222]
[1758889019346,0.2279,3891.6,3891.5,1.35132]
[1758889019544,0.5593,3891.9,3891.8,1.22218]
[1758889019742,0.98450334,3891.9,3891.5,0.1291]
[1758889019945,0.98450334,3891.9,3891.0,42.0848]
[1758889019946,0.2279,3891.0,3890.9,3.9678]
[1758889020142,0.7756,3891.4,3891.3,1.00414]
[1758889020347,3.652,3891.7,3891.6,0.68471]
[1758889020542,4.19238983,3891.7,3891.3,0.3194]
[1758889020851,0.7756,3891.2,3891.1,0.4895]
[1758889021050,0.87912285,3891.2,3891.1,0.72927]
[1758889021263,0.87912285,3891.2,3890.9,3.2078]
[1758889021264,0.46228,3891.0,3890.9,3.2078]
[1758889021565,0.7756,3890.8,3890.7,1.00422]
[1758889021755,1.34142285,3890.8,3890.7,1.00422]
[1758889022052,1.34142285,3890.8,3890.7,0.46232]
[1758889022246,0.87912285,3890.8,3890.7,0.46232]
[1758889022454,0.87912285,3890.8,3890.7,1.22232]
[1758889022850,1.34142285,3890.8,3890.7,0.2225]
[1758889023054,1.34142285,3890.8,3890.7,0.46232]
[1758889023055,0.87912285,3890.8,3890.7,0.46232]
[1758889023246,0.54772285,3890.8,3890.7,1.22232]
[1758889023448,0.10352285,3890.8,3890.7,6.22232]
[1758889024155,3.5392,3891.5,3890.7,6.22232]
[1758889024156,3.2078,3891.5,3891.4,0.4406]
[1758889024360,3.31123504,3891.5,3891.4,1.22223]
[1758889024660,4.54905504,3891.5,3891.4,0.2225]
[1758889024858,1.23784,3891.3,3891.2,0.68475]
[1758889025160,0.33133504,3891.3,3891.2,1.22225]
[1758889025560,0.10343504,3891.3,3891.2,1.22225]
[1758889025955,3.2078,3892.0,3891.9,0.77777]
[1758889026162,3.2078,3892.0,3891.9,1.04477]
[1758889026163,3.31124512,3892.0,3891.9,1.04477]
[1758889026756,3.63144512,3892.0,3891.9,0.267]
[1758889026961,11.01368462,3892.0,3891.1,3.2078]
[1758889027156,0.46218,3891.8,3891.4,0.46223]
[1758889027357,0.56564512,3891.7,3891.4,0.77783]
[1758889027660,3.2078,3891.9,3891.4,0.77783]
[1758889027661,3.2078,3891.5,3891.4,0.77783]
[1758889027860,0.10344512,3891.5,3891.4,0.77783]
[1758889028054,3.99018,3891.9,3891.2,0.267]
[1758889028055,3.528,3891.9,3891.7,0.7778]
[1758889028364,0.10344685,3891.8,3891.7,0.7931]
[1758889029163,0.10344685,3891.8,3891.7,1.0601]
[1758889031659,0.45124685,3891.8,3891.7,0.7931]
[1758889032054,0.45124685,3891.8,3891.7,0.3309]
[1758889032255,0.3478,3891.7,3891.6,0.46221]
[1758889032460,0.45124685,3891.7,3891.6,0.79311]
[1758889032660,0.10344685,3891.7,3891.6,0.79311]
[1758889032855,3.2078,3891.9,3891.5,0.3999]
[1758889033057,0.10358136,3891.8,3891.7,0.7931]
[1758889034262,0.45138136,3891.8,3891.7,0.7282]
[1758889034468,0.10358136,3891.8,3891.7,1.0591]
[1758889035664,0.45138136,3891.8,3891.7,0.7282]
[1758889035964,0.99564204,3891.8,3891.7,1.0591]
[1758889036166,0.10358136,3891.8,3891.7,1.0591]
[1758889036763,0.10358136,3891.8,3891.7,1.0601]
[1758889037164,0.10358136,3891.8,3891.7,1.505]
[1758889037865,0.0256,3892.1,3892.0,1.37086]
[1758889038066,0.12934526,3892.1,3892.0,1.37086]
[1758889038270,0.67373661,3892.1,3892.0,1.37086]
[1758889038560,0.12934526,3892.1,3892.0,6.37086]
[1758889038969,5.26e-06,3892.1,3892.0,6.37086]
[1758889039167,3.2078,3892.3,3892.2,1.23794]
[1758889039468,3.2078,3892.8,3892.7,0.79298]
[1758889039662,3.2078,3892.8,3892.7,1.05998]
[1758889040064,3.2078,3893.2,3893.1,0.79293]
[1758889040363,3.2078,3893.2,3893.1,1.05993]
[1758889040864,1.83988712,3894.7,3893.5,0.92578]
[1758889040865,3.2078,3893.6,3893.5,0.92578]
[1758889041165,3.2078,3893.6,3893.5,1.19278]
[1758889041468,3.5556,3894.0,3893.9,0.46194]
[1758889041768,3.5556,3894.0,3893.8,0.267]
[1758889041769,11.45093599,3894.0,3893.8,0.267]
[1758889041955,11.45093599,3894.0,3893.7,0.72896]
[1758889041956,0.3478,3893.8,3893.7,0.72896]
[1758889042159,0.54329649,3893.8,3893.3,0.3309]
[1758889042354,0.3478,3893.5,3893.4,0.462]
[1758889042568,0.3478,3893.5,3893.4,0.729]
[1758889042769,0.3478,3893.5,3893.4,1.0599]
[1758889043361,0.3478,3893.5,3893.4,0.729]
[1758889043566,0.4765,3893.5,3893.4,0.462]
[1758889043863,0.462,3893.4,3893.2,0.46202]
[1758889044063,8.46154713,3893.3,3893.2,0.46202]
[1758889044661,0.80987,3892.8,3892.1,3.5387]
[1758889044973,0.3478,3892.5,3892.4,0.46212]
[1758889045861,3.4748,3892.7,3892.0,0.4638]
[1758889045862,3.4748,3892.7,3892.6,0.79299]
[1758889046065,3.4748,3892.7,3892.0,0.3999]
[1758889046066,0.3478,3892.6,3892.5,0.4621]
[1758889046461,0.3478,3892.6,3892.0,0.267]
[1758889046462,0.3478,3892.4,3892.0,0.267]
[1758889046666,0.3478,3892.2,3892.1,0.267]
[1758889046865,10.7789395,3892.3,3891.7,0.3309]
[1758889047065,0.46217,3892.0,3891.8,0.46219]
[1758889047266,0.3478,3891.9,3891.8,0.79309]
[1758889047670,0.3478,3891.9,3891.8,0.3309]
[1758889048266,10.7789395,3892.3,3891.9,0.46217]
[1758889048267,0.3478,3892.2,3891.9,0.46217]
[1758889048472,0.46218,3891.9,3891.8,0.3309]
[1758889048667,3.2078,3891.9,3891.2,0.3309]
[1758889048870,0.3478,3891.2,3891.1,0.46226]
[1758889049975,0.3478,3891.2,3891.1,0.79316]
[1758889050176,0.3478,3891.1,3891.0,0.72928]
[1758889050373,0.3478,3891.1,3890.6,3.2078]
[1758889050566,0.3478,3891.1,3890.0,1.2889]
[1758889050567,0.3478,3890.9,3890.8,0.4623]
[1758889050762,3.2078,3891.3,3891.1,0.46227]
[1758889050966,3.2078,3891.3,3891.2,0.3309]
[1758889051176,3.31072779,3891.3,3891.2,0.3309]
[1758889051675,3.65852779,3891.3,3891.2,0.3309]
[1758889051867,0.3478,3891.2,3891.1,0.46227]
[1758889052070,0.45072779,3891.2,3891.1,0.79317]
[1758889052271,0.66722779,3891.2,3891.1,1.01337]
[1758889052969,0.66722779,3891.2,3891.1,1.23807]
[1758889053572,0.31942779,3891.2,3891.1,1.23807]
[1758889053772,0.10292779,3891.2,3891.1,1.23807]
[1758889056577,0.10292779,3891.2,3891.1,1.23806]
[1758889056578,0.78167779,3891.2,3891.1,1.23806]
[1758889057079,1.35687779,3891.2,3891.1,0.7758]
[1758889057272,1.35687779,3891.2,3891.1,0.5511]
[1758889057573,1.35687779,3891.2,3890.8,1.0134]
[1758889057574,0.7917,3890.9,3890.8,1.0134]
[1758889057774,0.89462779,3890.9,3890.8,1.0134]
[1758889058271,0.89462779,3890.9,3890.8,1.2381]
[1758889058272,0.54682779,3890.9,3890.8,1.2381]
[1758889058578,0.10292779,3890.9,3890.8,1.2381]
[1758889061376,3.2078,3891.3,3891.2,0.92015]
[1758889061674,4.55673817,3891.3,3891.2,0.7839]
[1758889061874,0.2335,3890.8,3890.7,1.0509]
[1758889062074,0.33629817,3890.8,3890.7,0.7839]
[1758889062276,0.10279817,3890.8,3890.7,1.51221]
[1758889062673,11.1149395,3891.3,3891.2,1.24615]
[1758889062674,3.4413,3891.3,3891.2,1.24615]
[1758889062869,3.54408579,3891.3,3891.2,1.24615]
[1758889064476,3.31058579,3891.3,3891.2,1.24615]
[1758889065276,0.10278579,3891.3,3891.2,1.24615]
[1758889066678,3.6557,3891.7,3891.6,1.2461]
[1758889066875,3.75850101,3891.7,3891.6,1.2461]
[1758889067082,4.55669101,3891.7,3891.6,1.2461]
[1758889067279,4.09450101,3891.7,3891.6,1.2461]
[1758889069180,0.4479,3891.3,3891.2,1.01484]
[1758889069385,0.88670101,3891.3,3891.2,0.68884]
[1758889069884,0.88670101,3891.3,3891.2,1.01484]
[1758889070584,0.55070101,3891.3,3891.2,1.24614]
[1758889071286,8.45784051,3891.3,3891.2,0.46224]
[1758889071479,8.45784051,3891.3,3891.2,1.01484]
[1758889071785,8.45784051,3891.3,3891.2,0.68884]
[1758889073383,0.10280101,3891.3,3891.2,1.24614]
[1758889074288,0.55070101,3891.3,3891.2,1.24614]
[1758889074489,0.10280101,3891.3,3891.2,1.24614]
[1758889075989,0.33630101,3891.3,3891.2,1.24614]
[1758889076182,0.88670101,3891.3,3891.2,1.24614]
[1758889076385,1.4305122,3891.3,3891.2,1.24614]
[1758889076688,1.4305122,3891.3,3891.2,1.51214]
[1758889076986,1.0945122,3891.3,3891.2,1.51214]
[1758889077496,0.6466122,3891.3,3891.2,1.51214]
[1758889080391,0.10280101,3891.3,3891.2,1.51214]
[1758889082582,0.10280101,3891.3,3891.2,1.24614]
[1758889082786,0.88670101,3891.3,3891.2,0.95384]
[1758889083082,1.09461053,3891.3,3891.2,1.51114]
[1758889083492,0.33630101,3891.3,3891.2,1.51114]
[1758889083691,0.88033783,3891.3,3891.2,1.51114]
[1758889083995,1.43073783,3891.3,3891.2,1.51114]
[1758889084391,0.88033783,3891.3,3891.2,1.51114]
[1758889085391,1.44473783,3891.3,3891.2,0.72724]
[1758889085701,0.7974,3891.0,3890.9,4.47559]
[1758889085989,0.90020101,3891.0,3890.9,4.74059]
[1758889087492,0.4474,3890.6,3890.1,2.16801541]
[1758889087693,4.0052,3890.6,3890.5,0.46233]
[1758889087891,4.0052,3890.6,3890.5,1.04573]
[1758889087892,4.66641827,3890.6,3890.5,1.04573]
[1758889088495,3.86901827,3890.6,3890.5,1.66783]
[1758889088693,0.1172728,3890.6,3890.5,4.87563]
[1758889088999,0.1172728,3890.6,3890.5,9.87563]
[1758889089703,2.8e-06,3890.6,3890.5,9.87563]
[1758889090789,2.8e-06,3890.6,3890.5,1.66783]
[1758889090998,0.2116028,3890.6,3890.5,1.66783]
[1758889091901,2.8e-06,3890.6,3890.5,1.31753]
[1758889092302,2.8e-06,3890.6,3890.5,4.52533]
[1758889097405,2.8e-06,3890.6,3890.5,45.32533]
[1758889097707,1.83988712,3892.6,3891.0,0.135]
[1758889097906,3.21980246,3893.6,3893.5,0.46198]
[1758889097907,3.56150246,3893.6,3893.5,0.46198]
[1758889098109,5.8209194,3893.6,3893.5,1.04938]
[1758889098410,0.1391,3894.0,3893.9,0.46193]
[1758889098611,0.1391,3894.0,3893.9,0.72993]
[1758889098612,1.03155245,3894.0,3893.9,0.72993]
[1758889098810,1.03155245,3894.0,3893.9,0.46193]
[1758889099016,1.03155245,3894.0,3893.9,0.72993]
[1758889099308,1.03155245,3894.0,3893.6,0.268]
[1758889099309,5.68985245,3894.0,3893.6,0.268]
[1758889099511,0.3417,3893.4,3893.1,0.46202]
[1758889099810,3.5495,3893.2,3893.1,0.46202]
[1758889100020,4.10025245,3893.2,3893.1,0.46202]
[1758889100208,0.1391,3893.0,3892.8,0.269]
[1758889100400,0.3417,3892.9,3892.8,0.269]
[1758889100605,5.3417,3892.9,3892.8,0.269]
[1758889100905,5.0,3892.9,3892.7,0.46207]
[1758889101106,3.5495,3892.8,3892.7,0.46207]
[1758889101507,0.3417,3892.7,3892.6,0.73108]
[1758889102006,0.3417,3892.7,3891.9,4.3632]
[1758889102007,5.3417,3892.7,3892.5,0.46209]
[1758889102204,0.3417,3892.7,3892.6,0.46208]
[1758889102404,0.3417,3892.7,3891.9,4.3632]
[1758889102405,0.1391,3892.0,3891.9,3.2078]
[1758889102604,0.4808,3892.0,3891.9,3.4768]
[1758889102806,0.4808,3892.0,3891.9,3.93897]
[1758889103809,0.3417,3892.0,3891.9,3.93897]
[1758889104112,0.3417,3892.0,3891.9,4.25837]
[1758889104808,0.5533,3892.0,3891.9,4.70717]
[1758889105012,0.9092,3892.0,3891.9,3.90097]
[1758889105215,0.9092,3892.0,3891.9,3.93897]
[1758889106309,6.37137,3892.0,3891.8,0.46218]
[1758889106509,6.37137,3892.0,3891.3,0.46223]
[1758889106510,0.5585,3891.4,3891.3,0.46223]
[1758889106715,0.7701,3891.4,3891.3,0.73023]
[1758889108518,0.89065,3891.2,3891.1,0.46226]
[1758889108714,0.7701,3891.2,3891.1,0.73026]
[1758889108910,0.7701,3891.2,3891.1,0.96126]
[1758889109814,0.87906589,3891.2,3891.1,0.96126]
[1758889111121,0.87906589,3891.2,3891.1,0.499]
[1758889111421,1.34131589,3891.2,3891.1,0.73026]
[1758889111612,0.87906589,3891.2,3891.1,0.73026]
[1758889112722,1.34131589,3891.2,3891.1,0.268]
[1758889113019,1.34131589,3891.2,3891.1,0.73026]
[1758889113318,0.9092,3891.0,3890.9,0.46228]
[1758889113519,1.01816589,3891.0,3890.9,0.69328]
[1758889116019,0.4284,3890.7,3890.6,3.2078]
[1758889116219,0.87906589,3890.7,3890.6,3.4758]
[1758889116415,0.87906589,3890.7,3890.6,3.7068]
[1758889116622,0.45066589,3890.7,3890.6,4.70632]
[1758889116922,0.66226589,3890.7,3890.6,4.70632]
[1758889117124,0.66218138,3890.7,3890.6,4.70632]
[1758889117615,0.10888138,3890.7,3890.6,4.70632]
[1758889117820,0.5533,3891.0,3890.9,1.23049]
[1758889118120,0.66219076,3891.0,3890.9,1.23049]
[1758889118621,0.10889076,3891.0,3890.9,1.49849]
[1758889118918,0.1391,3892.0,3891.7,0.90929]
[1758889118919,0.67368,3891.8,3891.7,0.90929]
[1758889119124,1.10293986,3891.8,3891.7,1.23659]
[1758889119323,0.64075986,3891.8,3891.7,0.90929]
[1758889119522,0.64075986,3891.8,3891.7,0.2302]
[1758889119523,1.31983986,3891.8,3891.7,0.2302]
[1758889119724,1.31983986,3891.8,3891.4,0.3273]
[1758889119725,0.7487,3891.2,3891.1,3.88696]
[1758889119924,0.85765986,3891.2,3891.1,4.15496]
[1758889120819,0.85765986,3891.2,3891.1,4.20369913]
[1758889121313,0.85765986,3891.2,3891.1,4.43389913]
[1758889121516,0.64075986,3891.2,3891.1,1.55339913]
[1758889122525,0.42925986,3891.2,3891.1,1.55339913]
[1758889122827,0.10895986,3891.2,3891.1,1.55339913]
[1758889123029,1.31990986,3891.2,3891.1,0.04873913]
[1758889123223,1.31990986,3891.2,3891.1,0.31573913]
[1758889123421,0.85765986,3891.2,3891.1,0.99489913]
[1758889123622,0.42925986,3891.2,3891.1,1.50239913]
[1758889123821,0.64075986,3891.2,3891.1,1.50239913]
[1758889124530,0.10895986,3891.2,3891.1,1.50239913]
[1758889124828,0.10895986,3891.2,3891.1,4.71019913]
[1758889125525,0.64075986,3891.2,3891.1,4.71019913]
[1758889125716,0.64075986,3891.2,3891.1,1.23666]
[1758889125921,0.64075986,3891.2,3891.1,1.50366]
[1758889126325,0.85765986,3891.2,3891.1,0.90936]
[1758889126523,0.85765986,3891.2,3891.1,1.17636]
[1758889127130,1.31990986,3891.2,3891.1,0.72926]
[1758889127431,0.85765986,3891.2,3891.1,0.72926]
[1758889128726,1.31990986,3891.2,3891.1,0.72926]
[1758889129026,6.31990986,3891.2,3891.1,0.267]
[1758889129934,5.85765986,3891.2,3891.1,0.46226]
[1758889130128,0.7487,3890.9,3890.8,0.2169]
[1758889130430,0.85765986,3890.9,3890.8,0.6792]
[1758889130623,0.85765986,3890.9,3890.8,0.4623]
[1758889131028,1.31994986,3890.9,3890.8,0.4623]
[1758889131424,0.46231,3890.7,3890.6,0.72931]
[1758889131631,1.31996986,3890.7,3890.6,0.46231]
[1758889131928,0.7487,3890.3,3890.2,0.94627]
[1758889132233,0.85765986,3890.3,3890.2,0.94627]
[1758889132436,1.32001986,3890.3,3890.2,0.72937]
[1758889132626,0.85765986,3890.3,3890.2,0.72937]
[1758889132826,0.85765986,3890.3,3890.2,1.17647]
[1758889133026,1.32001986,3890.3,3890.2,0.90947]
[1758889133225,0.85765986,3890.3,3890.2,0.67927]
[1758889133628,1.32001986,3890.3,3890.2,0.46237]
[1758889134437,1.34289,3890.0,3889.9,0.4624]
[1758889134730,1.45184986,3890.0,3889.9,0.4624]
[1758889135641,0.67392,3889.8,3889.7,0.46242]
[1758889135827,0.7487,3889.7,3889.6,0.46243]
[1758889136024,0.85765986,3889.7,3889.6,0.46243]
[1758889137833,0.85765986,3889.7,3889.6,0.67933]
[1758889138933,0.4284,3889.3,3889.2,0.4839]
[1758889139138,0.85765986,3889.3,3889.2,0.67939]
[1758889140040,0.85765986,3889.3,3889.2,1.23689]
[1758889140535,0.64075986,3889.3,3889.2,1.23689]
[1758889141326,0.64075986,3889.3,3888.7,4.57739727]
[1758889141327,0.7487,3888.8,3888.7,4.57739727]
[1758889141529,0.85472731,3888.8,3888.7,3.88725]
[1758889141930,0.85472731,3888.8,3888.7,0.90965]
[1758889143333,0.10602731,3888.8,3888.7,1.23695]
[1758889143536,3.4738,3889.6,3888.7,1.23695]
[1758889143537,3.2078,3889.6,3889.1,1.15624]
[1758889143737,8.17248206,3890.0,3889.4,1.23687]
[1758889143738,0.10593841,3889.5,3889.4,1.23687]
[1758889144635,0.63773841,3889.5,3889.4,1.50287]
[1758889145343,0.10593841,3889.5,3889.4,1.50287]
[1758889146339,1.01643841,3889.5,3889.4,0.2169]
[1758889146545,1.47888841,3889.5,3889.4,0.266]
[1758889146937,0.91929,3889.3,3889.2,0.46249]
[1758889147238,0.46251,3889.0,3888.9,0.46252]
[1758889147444,1.37301,3889.0,3888.9,0.46252]
[1758889147644,0.91933,3888.9,3888.8,0.46253]